Cogmind - Beta 13 @@@ ROGUE MODE // 2024.04.23 @ 16:00:11 Player: dp-fld Result: Destroyed by as-94986 with Assembled Heavy Rifle Performance ------------- Evolutions (0) 0 Regions Visited (4) 800 Robots Destroyed (26) 130 Value Destroyed (471) 471 Prototype IDs (3) 60 Alien Tech Used (0) 0 Bonus (-15) -15 TOTAL SCORE: 1446 Bonus ------- Friendly Fire -15 Cogmind --------- Core Integrity 0/250 Matter 300/300 Energy 250/250 System Corruption 0% Temperature Cool (0) Movement Rolling (105) Ox1 Location -9/Mines Parts ------- > --- POWER (1) -------- Ion Engine > --- PROPULSION (2) --- Armored Wheel Armored Wheel > --- UTILITY (2) ------ High-capacity Storage Unit > --- WEAPON (2) ------- (None) > --- INVENTORY (20) --- Nuclear Core Nuclear Core Nuclear Core Light Treads Wheel Armored Wheel High-capacity Matter Pod (200) Terrain Scanner Terrain Scan Processor ECM Suite Hardened Light Armor Plating Authchip [Weapon] Authchip [Weapon] Improved EM Shotgun Improved EM Shotgun Improved EM Shotgun Improved EM Shotgun Peak State ------------ > --- POWER ------------ Ion Engine > --- PROPULSION ------- Armored Wheel Armored Wheel > --- UTILITY ---------- High-capacity Storage Unit Seismic Detector > --- WEAPON ----------- Beamcaster Heavy Assault Rifle > --- INVENTORY -------- Nuclear Core Nuclear Core Nuclear Core Light Treads Wheel Armored Wheel Armored Wheel High-capacity Matter Pod Terrain Scanner Terrain Scan Processor ECM Suite Hardened Light Armor Plating Authchip [Weapon] Authchip [Weapon] Improved EM Shotgun Improved EM Shotgun Improved EM Shotgun Improved EM Shotgun Heavy Assault Rifle [Rating: 18] Favorites ----------- Power Ion Engine Engine Ion Engine Propulsion Armored Wheel Treads Light Treads Leg Aluminum Leg Wheel Armored Wheel Utility Seismic Detector Device Seismic Detector Storage High-capacity Storage Unit Weapon Assault Rifle Energy Gun Improved EM Shotgun Ballistic Gun Assault Rifle Launcher Grenade Launcher Build | -11 -10 -10 -10 -9 ------- Run | Yrd Mat Min Exi Min Slots Evolved . | . . . . . Power . | . . . . . Propulsion . | . . . . . Utility . | . . . . . Weapon . | . . . . . Parts Attached 20 | 4 8 . 1 7 Power 4 | . 4 . . . Engine 4 | . 4 . . . Core . | . . . . . Reactor . | . . . . . Propulsion 5 | 2 2 . . 1 Treads 2 | 2 . . . . Leg . | . . . . . Wheel 3 | . 2 . . 1 Hover . | . . . . . Flight . | . . . . . Utility 4 | 1 1 . 1 1 Device 2 | 1 . . . 1 Storage 2 | . 1 . 1 . Processor . | . . . . . Hackware . | . . . . . Protection . | . . . . . Artifact . | . . . . . Weapon 7 | 1 1 . . 5 Energy Gun 2 | . 1 . . 1 Energy Cannon . | . . . . . Ballistic Gun 4 | 1 . . . 3 Ballistic Cannon . | . . . . . Launcher 1 | . . . . 1 Special Weapon . | . . . . . Impact Weapon . | . . . . . Slashing Weapon . | . . . . . Piercing Weapon . | . . . . . Special Melee Weapon . | . . . . . Unidentified Prototypes 1 | . 1 . . . Parts Lost 7 | . 1 . . 6 Power . | . . . . . Propulsion 1 | . . . . 1 Utility 1 | . . . . 1 Weapon 5 | . 1 . . 4 Highest Loss Streak 3 | . 1 . . 3 To Critical Strikes . | . . . . . Average Slot Usage (%) 99 | . 100 100 100 99 Engine 14 | . 14 14 14 14 Wheel 27 | . 25 28 28 28 Device 14 | . 14 14 14 14 Storage 14 | . 14 14 14 14 Energy Gun 8 | . 2 14 14 . Ballistic Gun 17 | . 25 14 14 17 Launcher 1 | . . . . 9 Naked Turns . | . . . . . Heaviest Build 52 | 15 51 51 51 52 Greatest Support 40 | 40 40 24 24 24 Greatest Overweight (x) 4 | . 4 2 2 2 Average Overweight (x) 1 | . 1 2 2 1 Largest Inventory Capacity 20 | 8 20 20 20 20 Average Capacity 19 | 8 19 20 20 20 Most Carried 20 | 6 20 18 20 20 Average Carried 18 | 6 17 18 19 19 Final Capacity 20 | 8 20 20 20 20 Final Carried 20 | 6 18 18 20 17 Class Distribution -------------------- 100% | Mutant Dominant Class ---------------- Mutant | -10/Materials Mutant | -10/Mines Mutant | -10/Exiles Mutant | -9/Mines Resources | -11 -10 -10 -10 -9 ----------- Run | Yrd Mat Min Exi Min Matter Collected 1057 | 240 533 30 . 254 Remotely . | . . . . . Salvage Created 671 | 29 450 . . 192 Parts 37 | 1 23 . . 13 Haulers Intercepted 2 | . 2 . . . Recyclers Shooed 1 | . 1 . . . Parts Field Recycled . | . . . . . Retrieved Matter . | . . . . . Parts Self-Destructed . | . . . . . Prevented . | . . . . . Kills | -11 -10 -10 -10 -9 ------- Run | Yrd Mat Min Exi Min Combat Hostiles Destroyed 24 | . 10 . . 14 Guns 11 | . 10 . . 1 AOE 13 | . . . . 13 Classes Destroyed 7 | 1 5 . . 1 Worker 2 | . 1 . . 1 Tunneler 2 | 1 . . . 1 Hauler 2 | . 2 . . . Recycler 1 | . 1 . . . Swarmer 10 | . 6 . . 4 Grunt 9 | . 4 . . 5 Assembled 5 | . . . . 5 Best Kill Streak 6 | 1 3 . . 6 Combat Bots Only 5 | . 3 . . 5 Max Kills in Single Turn 4 | 1 2 . . 4 Gunslinging . | . . . . . Exploded 4 | . . . . 4 Melee . | . . . . . Uniques/NPCs Destroyed . | . . . . . Combat | -11 -10 -10 -10 -9 -------- Run | Yrd Mat Min Exi Min Hostile Shots Fired 132 | . 63 . . 69 Missed 41 | . 21 . . 20 Damage Taken 1194 | . 488 41 . 665 Core 259 | . 123 . . 136 Absorbed by Shields . | . . . . . Core Remaining (%) 100 | 100 . . . . Volleys Fired 87 | 7 48 11 . 21 Largest 2 | 1 2 1 . 2 Hottest 98 | 40 65 45 . 98 Shots Fired 150 | 7 96 11 . 36 Gun 138 | 7 96 11 . 24 Cannon . | . . . . . Launcher 12 | . . . . 12 Special . | . . . . . Kinetic 119 | . 86 10 . 23 Thermal 8 | 7 . . . 1 Explosive 12 | . . . . 12 Electromagnetic 11 | . 10 1 . . Robot Hit Streak 5 | 5 4 2 . 4 Robot Miss Streak 4 | 2 4 3 . 3 Penetration Max . | . . . . . Secondary Targets 1 | . 1 . . . Max Gunslinging Chain 1 | . 1 . . . Shots Hit Robots 86 | 5 57 4 . 20 Core Hits 51 | 1 22 . . 28 Critical Kills . | . . . . . Critical Parts Destroyed . | . . . . . Critical Strikes . | . . . . . Melee Attacks . | . . . . . Impact . | . . . . . Slashing . | . . . . . Piercing . | . . . . . Sneak Attacks . | . . . . . Combat Hostiles . | . . . . . Follow-up Attacks . | . . . . . Damage Inflicted 2152 | 56 787 57 . 1252 Guns 1064 | 56 760 57 . 191 Cannons . | . . . . . Explosions 1088 | . 27 . . 1061 Melee . | . . . . . Ramming . | . . . . . Kinetic 869 | . 653 45 . 171 Thermal 103 | 56 27 . . 20 Explosive 1061 | . . . . 1061 Electromagnetic 119 | . 107 12 . . Impact . | . . . . . Slashing . | . . . . . Piercing . | . . . . . Highest Corruption . | . . . . . Average Corruption . | . . . . . Corruption Purged . | . . . . . Corruption Blocked . | . . . . . Overload Shots . | . . . . . Overflow Damage 76 | . . . . 76 Projectiles . | . . . . . Explosions 76 | . . . . 76 Melee . | . . . . . Knockbacks . | . . . . . Impact . | . . . . . Kinetic . | . . . . . Secondary . | . . . . . Self-Inflicted Damage 34 | . 34 . . . Shots 1 | . 1 . . . Rammed . | . . . . . Targets Rammed . | . . . . . Kicked . | . . . . . Crushed . | . . . . . Highest Temperature 36 | . 20 4 . 36 Average Temperature 9 | . 6 3 . 14 Received Heat Transfer 391 | . 180 . . 211 Siege Activations . | . . . . . Robots Corrupted . | . . . . . Combat Hostiles . | . . . . . Parts Fried . | . . . . . Impact Corruptions . | . . . . . Robots Melted . | . . . . . Combat Hostiles . | . . . . . Parts Melted . | . . . . . Heat Transferred 212 | 125 50 . . 37 Parts Sabotaged . | . . . . . Parts Stolen . | . . . . . Parts Stripped . | . . . . . Power Chain Reactions 1 | . 1 . . . Alert | -11 -10 -10 -10 -9 ------- Run | Yrd Mat Min Exi Min Peak Influence 253 | 5 170 65 . 253 Initial 65 | . 3 65 . . Average 55 | 2 54 27 . 104 Maximum Alert Level 1 | . . . . 1 Low Security (%) 94 | 100 100 100 . 78 Level 1 5 | . . . . 21 Level 2 . | . . . . . Level 3 . | . . . . . Level 4 . | . . . . . Level 5 . | . . . . . High Security . | . . . . . Max Security . | . . . . . Squads Dispatched 3 | . 2 . . 1 Investigation 2 | . 2 . . . Extermination . | . . . . . Reinforcement 1 | . . . . 1 Assault . | . . . . . Garrison . | . . . . . Intercept . | . . . . . Searches Triggered . | . . . . . Construction Impeded 1 | . . . . 1 Haulers Reinforced . | . . . . . Active Scanning Responses . | . . . . . Cargo Convoy Interrupts . | . . . . . Stealth | -11 -10 -10 -10 -9 --------- Run | Yrd Mat Min Exi Min Distress Signals 1 | . 1 . . . Communications Jammed . | . . . . . Distress Signals . | . . . . . Times Spotted 42 | . 15 . . 27 Peak Tracking Total 10 | . 3 . . 10 Tactical Retreats 3 | . . . . 3 Traps | -11 -10 -10 -10 -9 ------- Run | Yrd Mat Min Exi Min Traps Triggered . | . . . . . Indirectly . | . . . . . Trap Hack Attempts . | . . . . . Triggered . | . . . . . Disarmed . | . . . . . Reprogrammed . | . . . . . Reused . | . . . . . Traps Extracted . | . . . . . Installed . | . . . . . Triggered . | . . . . . Machines | -11 -10 -10 -10 -9 ---------- Run | Yrd Mat Min Exi Min Machines Disabled . | . . . . . Max in Single Turn . | . . . . . Machines Repaired . | . . . . . Machines Dismantled . | . . . . . Machines Sabotaged . | . . . . . Overloaded Fab Kills . | . . . . . Hacking | -11 -10 -10 -10 -9 --------- Run | Yrd Mat Min Exi Min Machines Accessed 9 | . 4 1 4 . Terminals 4 | . 4 . . . Fabricators . | . . . . . Repair Stations . | . . . . . Recycling Units . | . . . . . Scanalyzers . | . . . . . Garrison Access . | . . . . . Total Hacks 19 | . 14 1 4 . Successful 11 | . 6 1 4 . Failed 8 | . 8 . . . Catastrophic 3 | . 3 . . . Database Lockouts . | . . . . . Manual 11 | . 11 . . . Terminals 14 | . 14 . . . Fabricators . | . . . . . Repair Stations . | . . . . . Recycling Units . | . . . . . Scanalyzers . | . . . . . Garrison Access . | . . . . . Terminal Hacks 9 | . 4 1 4 . Record 4 | . . . 4 . Prototype ID Bank 2 | . 2 . . . Open Door 1 | . . 1 . . Terminal Index 1 | . 1 . . . Zone Layout 1 | . 1 . . . Fabricator Hacks . | . . . . . Repair Station Hacks . | . . . . . Recycling Unit Hacks . | . . . . . Scanalyzer . | . . . . . Garrison Access Hacks . | . . . . . Unauthorized Hacks 2 | . 2 . . . Terminals 2 | . 2 . . . Assimilate 1 | . 1 . . . Operators 1 | . 1 . . . Fabricators . | . . . . . Repair Stations . | . . . . . Recycling Units . | . . . . . Scanalyzers . | . . . . . Garrison Access . | . . . . . Data Cores Recovered . | . . . . . Used . | . . . . . Hacking Detections 4 | . 4 . . . Full Trace Events 2 | . 2 . . . Feedback Events . | . . . . . Feedback Blocked . | . . . . . Robot Schematics Acquired . | . . . . . Robots Built . | . . . . . Authchips . | . . . . . Time . | . . . . . Total Robot Build Rating . | . . . . . Part Schematics Acquired . | . . . . . Parts Built . | . . . . . Authchips . | . . . . . Time . | . . . . . Total Part Build Rating . | . . . . . Parts Repaired . | . . . . . Time . | . . . . . Parts Recycled . | . . . . . Recycled Matter . | . . . . . Retrieved Matter . | . . . . . Retrieved Components . | . . . . . Parts Scanalyzed . | . . . . . Part Schematics Acquired . | . . . . . Parts Damaged . | . . . . . Bothacking | -11 -10 -10 -10 -9 ------------ Run | Yrd Mat Min Exi Min Used RIF Installer . | . . . . . Robots Hacked . | . . . . . Non-combat . | . . . . . Combat . | . . . . . Robot Hacks Applied . | . . . . . Relay Couplers Released . | . . . . . Fabnet Peak Effective % . | . . . . . Robots Rewired . | . . . . . Allies Hacked . | . . . . . Hacks Repelled . | . . . . . Allies | -11 -10 -10 -10 -9 -------- Run | Yrd Mat Min Exi Min Total Allies 1 | . 1 . . . Largest Group 1 | . 1 1 1 1 Highest-Rated Group 10 | . 10 9 9 9 Highest-Rated Ally 10 | . 10 9 9 9 Total Orders . | . . . . . Ally Attacks . | . . . . . Total Damage . | . . . . . Kills . | . . . . . Allies Corrupted . | . . . . . Allies Melted . | . . . . . Intel | -11 -10 -10 -10 -9 ------- Run | Yrd Mat Min Exi Min Robot Analysis Total . | . . . . . Derelict Logs Recovered 4 | . . 2 . 2 Drone Launches . | . . . . . Drone Recoveries . | . . . . . Exploration | -11 -10 -10 -10 -9 ------------- Run | Yrd Mat Min Exi Min Turns Passed 3076 | 52 761 952 700 611 Spaces Moved 2210 | 21 399 767 579 444 Core . | . . . . . Treads 46 | 19 27 . . . Legs 2 | 2 . . . . Wheels 2162 | . 372 767 579 444 Hover . | . . . . . Flight . | . . . . . Fastest Speed 105 | 120 120 120 120 105 Average Speed 121 | 156 127 120 120 119 Slowest Speed 240 | 160 240 120 120 120 Overloaded Moves . | . . . . . Propulsion Burnouts . | . . . . . Robots Hopped . | . . . . . Cave-ins Triggered . | . . . . . Exploration Rate (%) 63 | 4 49 97 92 74 Regions Visited 4 Branch Regions 3 Pre-discovered Areas 2 | . . 1 . 1 Known Exits Taken . | . . . . . Unknown Exits Taken 4 | 1 1 1 1 . Scrap Searched 3 | . . 1 . 2 Spaces Dug . | . . . . . Terrain Destroyed 101 | . 4 . . 97 Melee . | . . . . . Projectile . | . . . . . AOE 101 | . 4 . . 97 Terrain Rammed . | . . . . . Walls Destroyed . | . . . . . Machines Disabled . | . . . . . Actions | -11 -10 -10 -10 -9 --------- Run | Yrd Mat Min Exi Min Total 2451 | 31 559 788 586 487 Wait 90 | . 74 9 . 7 Move 2206 | 20 398 766 578 444 Hop . | . . . . . Pick Up 27 | . 19 1 4 3 Fast Attach 4 | 1 2 . . 1 Attach 4 | . 1 . . 3 Detach 2 | . 2 . . . Swap 12 | 3 5 . 1 3 Drop 19 | . 10 1 3 5 Fire 87 | 7 48 11 . 21 Melee . | . . . . . Ram . | . . . . . Kick . | . . . . . Crush . | . . . . . Escape Stasis . | . . . . . Rewire . | . . . . . Trap . | . . . . . Miscellaneous . | . . . . . Route ------- -11/Scrapyard -10/Materials (discovered 2 exits: [Mat] / *Min) -10/Mines (discovered 3 exits: [*Mat x2] / *Exi) -10/Exiles (discovered 2 exits: [*Min x2]) -9/Mines (discovered 1 exit: [*Mat]) History --------- Turn | Location | Event 1 | -11/Scrapyard | Discovered new exit (range 3) 53 | -11/Scrapyard | Entered Materials 311 | -10/Materials | Build established: Mutant 521 | -10/Materials | Discovered new exit (range 16) 697 | -10/Materials | Discovered new exit (range 16) 814 | -10/Materials | Entered Mines 814 | -10/Mines | Accompanied by 1 ally 840 | -10/Mines | Met a Derelict bent on vengeance 1120 | -10/Mines | Learned 2 Materials zone layouts 1159 | -10/Mines | Discovered new exit (range 5) 1231 | -10/Mines | Learned location of Recycling (-8) 1604 | -10/Mines | Discovered new exit (range 7) 1612 | -10/Mines | Met a Derelict who couldn't figure out how to use a Trap Extractor 1760 | -10/Mines | Deemed a non-threat by the Exiles lab entrance 1760 | -10/Mines | Discovered new exit (range 5) 1766 | -10/Mines | Entered Exiles 1766 | -10/Exiles | Found Exiles lab abandoned 1766 | -10/Exiles | Accompanied by 1 ally 1789 | -10/Exiles | Discovered new exit (range 15) 2307 | -10/Exiles | Discovered new exit (range 11) 2466 | -10/Exiles | Entered Mines 2466 | -9/Mines | Accompanied by 1 ally 2483 | -9/Mines | YI-UF0 nonchalantly dropped a Grenade Launcher on the ground 2492 | -9/Mines | Learned Materials terminal intel 2521 | -9/Mines | Learned location of Zion (-7) 2659 | -9/Mines | Core integrity fell below 50% 2897 | -9/Mines | Assembled infested the area 2902 | -9/Mines | Assisted by a Guerilla fighting off Assembled 2960 | -9/Mines | Lost 3 parts (1n2w) 3063 | -9/Mines | Discovered new exit (range 14) 3066 | -9/Mines | Core integrity fell below 20% 3077 | -9/Mines | Destroyed by as-94986 with Assembled Heavy Rifle Last Messages --------------- 02913_ as-49875 knocked back. 02913_ HV Slug penetrates as-49875. 02916_ Destroyed Asb. Hover Unit. 02916_ as-67712 destroyed. 02919_ The unstable cave ceiling collapses. 02919_ Grenade Launcher destroyed. 02927_ Beamcaster destroyed. 02929_ Arm. Wheel destroyed. 02942_ T-07 Excavator destroyed. 02956_ K-01 Serf destroyed. 02959_ Acquired 11 matter. 03003_ K-01 Serf destroyed. 03057_ R-06 Scavenger destroyed. 03062_ Acquired 64 matter. 03063_ EXIT=FOUND 03064_ Knocked back. 03072_ R-06 Scavenger collects Wheel. 03072_ Hvy. Assault Rifle destroyed. 03073_ Seismic Detector destroyed. 03075_ Hvy. Assault Rifle destroyed. Map ----- +----------------------------------------------------+ | ????????????????????????????????????????????????? | | ????????????????????????????????????????????????? | | ????????????????????????????????????????????????? | | ????????????????????????????????????????????????? | | ????????????????????????????????????????????????? | | ????????????????????????????????????????????????? | | ????????????????????????????????????????????????? | | ????????????????????????????????????????????????? | | ????????????????????????????????????????????????? | | ????????????????????????????????????????????????? | | ????????????????????????????????????????????????? | | # ?????????????????????????????????????????? | | ?????????????????????????????????????????? | | ?? ?????????????????????????????????? | | ### ?? ?????????????????????????????????? | | ????????? ?????????????????????????????????? | | ?????????? ????????#####????????????????????? | | ?????????## % ????????#ggg#????????????????????? | | ?????????# =?####???# #????????????????????? | | ?????????## %## #???# #????????????????????? | | ?????????? = # =#####$ ####?????????????????? | | ??????????# # %u #?????????????????? | | ??????????# #?????????????????? | | ???????????# ## a = #?????????????????? | | ???????????# ## %% =%! #?????????????????? | | ?????????### !% @ % #?????????????????? | | ?????????# # ar k #?????????????????? | | ?????????# a %* % % #?????????????????? | | ?????????# #=[! a a #?????????????????? | | ????????## !=! #?????????????????? | | ????????# # [%# ##############?????????????????? | | ????????# #?????????????????????????????? | | ????????## #?????????????????????????????? | | ?????????# # #????????????????????????????? | | ?????????#### # #??????????###???????????????? | | ???????????## ###?????????# ##??????????????? | | ???????????# #########?## $#####??????????? | | ???????????# $ #?# ##?????????? | | ???????????### ######## ### #?????????? | | ????????????# # #??????# ## #?????????? | | ????????????## ??????# #????????####???? | | ??????????????###??????#### ##???????## ##??? | | ??????????????????????????# ##???????## #??? | | #???#######???????????????# ###????????# #??? | | ######### ####????????????# #??????????# #???? | | #### ##???????????# #?????????## #????? | | ########??????#### #?????????# ##???? | | ## ##?????# #????????## ##??? | | #### ## !####### ############# ##?? | | ???# ### %* % % #???# ## ##? | +----------------------------------------------------+ Best States ------------- Heat Dissipation 25 Energy Generation 10 Energy Capacity 250 Matter Stores 300 Matter Capacity 300 Sight Range 16 Terrain Scan Density 10 Evasion (%) 40 Recoil Reduction 2 Authchip Count 2 Item Schematics ----------------- None Robot Schematics ------------------ None Fabricated ------------ Nothing Alien Tech Used ----------------- None Achievements -------------- None Challenges ------------ None Game ------ Seed GhostCompactDetonator Manual? 0 Play Time 00:38:18 Cumulative 322.7 hours Start 2024.04.23 @ 15:03:18 End 2024.04.23 @ 16:00:11 Sessions 1 Manual Loads 0 Difficulty Rogue Special Mode None Game No. 108 Rogue 69 Adventurer 0 Explorer 39 Win Type - Total 10 Types 8/1/1/0/0/0/0/0/0 Lore% 68 Gallery% 74 Achievement% 66 Wizard Run 0 Options --------- Layout 0 ASCII 1 Keyboard 1 Movement Arrows Keybinds 0 Fullscreen 2 Font 36/Smallcaps Map View 76x50 Zoom Use 0% Tactical HUD 1 Map Filters NONE Filters NONE Steam 1 RUN: 412d4d5d-6497-43ee-a07d-406eb781f9f5